[Event "Titled Tuesday Blitz March 28 Early 2023"]
[White "Rosen, Eric"]
[Black "Shukhman, Anna"]
[WhiteFideId "2032562"]
[BlackFideId "54180058"]
[WhiteElo "2331"]
[BlackElo "2125"]
[Result "1-0"]
[Round "10"]
[TimeControl "180+2"]
[Date "2023.03.28"]
[WhiteClock "0:00:08"]
[BlackClock "0:00:11"]

1. e4 {[%clk 0:02:59]}  c5 {[%clk 0:02:58]} 2. Nc3 {[%clk 0:02:57]}  e6 {[%clk 0:02:58]} 3. f4 {[%clk 0:02:56]}  d5 {[%clk 0:02:56]} 4. Nf3 {[%clk 0:02:56]}  Nf6 {[%clk 0:02:53]} 5. Bb5+ {[%clk 0:02:53]}  Bd7 {[%clk 0:02:52]} 6. Bxd7+ {[%clk 0:02:40]}  Qxd7 {[%clk 0:02:49]} 7. Qe2 {[%clk 0:02:34]}  Nc6 {[%clk 0:02:47]} 8. d3 {[%clk 0:02:21]}  Be7 {[%clk 0:02:43]} 9. e5 {[%clk 0:02:12]}  Ng8 {[%clk 0:02:42]} 10. O-O {[%clk 0:02:10]}  h5 {[%clk 0:02:41]} 11. Qe1 {[%clk 0:02:02]}  Nh6 {[%clk 0:02:39]} 12. Ne2 {[%clk 0:02:03]}  Nf5 {[%clk 0:02:35]} 13. Ng3 {[%clk 0:02:02]}  g6 {[%clk 0:02:26]} 14. c3 {[%clk 0:01:59]}  h4 {[%clk 0:02:15]} 15. Nxf5 {[%clk 0:01:57]}  gxf5 {[%clk 0:02:16]} 16. Be3 {[%clk 0:01:56]}  h3 {[%clk 0:02:07]} 17. g3 {[%clk 0:01:54]}  d4 {[%clk 0:02:06]} 18. cxd4 {[%clk 0:01:47]}  cxd4 {[%clk 0:02:07]} 19. Bd2 {[%clk 0:01:47]}  O-O-O {[%clk 0:01:59]} 20. Qf2 {[%clk 0:01:41]}  Kb8 {[%clk 0:01:59]} 21. a3 {[%clk 0:01:34]}  Qd5 {[%clk 0:01:29]} 22. b4 {[%clk 0:01:26]}  Rc8 {[%clk 0:01:25]} 23. Rfc1 {[%clk 0:01:20]}  Rhd8 {[%clk 0:01:22]} 24. Ne1 {[%clk 0:01:19]}  a6 {[%clk 0:01:19]} 25. Qf3 {[%clk 0:01:14]}  Na7 {[%clk 0:00:58]} 26. Qxd5 {[%clk 0:01:13]}  Rxd5 {[%clk 0:00:57]} 27. Rxc8+ {[%clk 0:01:13]}  Nxc8 {[%clk 0:00:47]} 28. Kf2 {[%clk 0:01:11]}  Nb6 {[%clk 0:00:46]} 29. Nf3 {[%clk 0:01:10]}  Na4 {[%clk 0:00:46]} 30. Ng1 {[%clk 0:01:03]}  Rd7 {[%clk 0:00:43]} 31. Rc1 {[%clk 0:01:00]}  b5 {[%clk 0:00:35]} 32. Nxh3 {[%clk 0:01:00]}  a5 {[%clk 0:00:33]} 33. Ng1 {[%clk 0:00:58]}  Nb2 {[%clk 0:00:30]} 34. Ke2 {[%clk 0:00:56]}  axb4 {[%clk 0:00:29]} 35. axb4 {[%clk 0:00:57]}  Ra7 {[%clk 0:00:19]} 36. h4 {[%clk 0:00:52]}  Ra2 {[%clk 0:00:19]} 37. Rc2 {[%clk 0:00:51]}  Ra1 {[%clk 0:00:13]} 38. Nf3 {[%clk 0:00:49]}  Na4 {[%clk 0:00:12]} 39. Rc1 {[%clk 0:00:37]}  Ra2 {[%clk 0:00:12]} 40. Ke1 {[%clk 0:00:34]}  Nb2 {[%clk 0:00:08]} 41. Ke2 {[%clk 0:00:26]}  Na4 {[%clk 0:00:08]} 42. Kf1 {[%clk 0:00:22]}  Kb7 {[%clk 0:00:08]} 43. h5 {[%clk 0:00:21]}  Bf8 {[%clk 0:00:08]} 44. Ke1 {[%clk 0:00:15]}  Nb2 {[%clk 0:00:08]} 45. Ke2 {[%clk 0:00:16]}  Na4 {[%clk 0:00:09]} 46. Kf1 {[%clk 0:00:16]}  Nb2 {[%clk 0:00:09]} 47. Rc2 {[%clk 0:00:15]}  Ra1+ {[%clk 0:00:09]} 48. Ke2 {[%clk 0:00:15]}  Rb1 {[%clk 0:00:10]} 49. Nxd4 {[%clk 0:00:15]}  Na4 {[%clk 0:00:10]} 50. Nc6 {[%clk 0:00:13]}  Nb6 {[%clk 0:00:09]} 51. Nd8+ {[%clk 0:00:14]}  Ka7 {[%clk 0:00:09]} 52. Nxf7 {[%clk 0:00:15]}  Nd5 {[%clk 0:00:09]} 53. h6 {[%clk 0:00:14]}  Rh1 {[%clk 0:00:09]} 54. Be3+ {[%clk 0:00:10]}  Kb7 {[%clk 0:00:07]} 55. Bc5 {[%clk 0:00:06]}  Rh2+ {[%clk 0:00:06]} 56. Kd1 {[%clk 0:00:06]}  Rxc2 {[%clk 0:00:06]} 57. Kxc2 {[%clk 0:00:07]}  Bxc5 {[%clk 0:00:05]} 58. bxc5 {[%clk 0:00:07]}  Ne7 {[%clk 0:00:06]} 59. h7 {[%clk 0:00:07]}  Ng6 {[%clk 0:00:07]} 60. h8=Q {[%clk 0:00:07]}  Nxh8 {[%clk 0:00:08]} 61. Nxh8 {[%clk 0:00:07]}  Kc6 {[%clk 0:00:09]} 62. d4 {[%clk 0:00:08]}  Kd5 {[%clk 0:00:09]} 63. Kd3 {[%clk 0:00:08]}  b4 {[%clk 0:00:10]} 64. Ng6 {[%clk 0:00:08]}  b3 {[%clk 0:00:11]} 65. Ne7# {[%clk 0:00:08]} 1-0


[Site "https://www.chess.com"]

[Event "Titled Tuesday Blitz March 28 Early 2023"]
[White "Bilan, Danila"]
[Black "Krzywda, Andrzej"]
[WhiteFideId "24161918"]
[BlackFideId "1114565"]
[WhiteElo "2182"]
[BlackElo "2155"]
[Result "1/2-1/2"]
[Round "10"]
[TimeControl "180+2"]
[Date "2023.03.28"]
[WhiteClock "0:00:04"]
[BlackClock "0:00:05"]

1. d4 {[%clk 0:02:59]}  Nf6 {[%clk 0:02:58]} 2. Nf3 {[%clk 0:03:00]}  d5 {[%clk 0:02:57]} 3. c4 {[%clk 0:02:59]}  dxc4 {[%clk 0:02:57]} 4. e3 {[%clk 0:02:59]}  e6 {[%clk 0:02:58]} 5. Bxc4 {[%clk 0:03:00]}  c5 {[%clk 0:02:58]} 6. O-O {[%clk 0:03:00]}  Nc6 {[%clk 0:02:59]} 7. Nc3 {[%clk 0:03:00]}  a6 {[%clk 0:02:59]} 8. a3 {[%clk 0:02:59]}  Be7 {[%clk 0:02:56]} 9. dxc5 {[%clk 0:02:57]}  Qxd1 {[%clk 0:02:55]} 10. Rxd1 {[%clk 0:02:57]}  Bxc5 {[%clk 0:02:56]} 11. b4 {[%clk 0:02:56]}  Be7 {[%clk 0:02:56]} 12. Bb2 {[%clk 0:02:47]}  O-O {[%clk 0:02:56]} 13. b5 {[%clk 0:02:23]}  Na5 {[%clk 0:02:42]} 14. Ba2 {[%clk 0:02:08]}  Bd7 {[%clk 0:02:35]} 15. a4 {[%clk 0:01:57]}  Rfc8 {[%clk 0:02:27]} 16. Ne5 {[%clk 0:01:46]}  Be8 {[%clk 0:02:27]} 17. Rac1 {[%clk 0:01:19]}  Bb4 {[%clk 0:02:14]} 18. bxa6 {[%clk 0:01:01]}  Rxa6 {[%clk 0:02:03]} 19. Nb5 {[%clk 0:00:51]}  Rxc1 {[%clk 0:01:20]} 20. Rxc1 {[%clk 0:00:49]}  Nc6 {[%clk 0:01:19]} 21. Nc7 {[%clk 0:00:32]}  Rxa4 {[%clk 0:01:11]} 22. Bb3 {[%clk 0:00:31]}  Ra5 {[%clk 0:00:49]} 23. Nxe8 {[%clk 0:00:19]}  Nxe8 {[%clk 0:00:46]} 24. Nxc6 {[%clk 0:00:18]}  bxc6 {[%clk 0:00:47]} 25. Rxc6 {[%clk 0:00:17]}  Ra8 {[%clk 0:00:38]} 26. g3 {[%clk 0:00:13]}  Rd8 {[%clk 0:00:29]} 27. Bd4 {[%clk 0:00:10]}  Rb8 {[%clk 0:00:26]} 28. Kg2 {[%clk 0:00:09]}  Bf8 {[%clk 0:00:25]} 29. Ba4 {[%clk 0:00:08]}  Be7 {[%clk 0:00:25]} 30. Ra6 {[%clk 0:00:08]}  Bf6 {[%clk 0:00:22]} 31. Bxe8 {[%clk 0:00:07]}  Rxe8 {[%clk 0:00:21]} 32. Bxf6 {[%clk 0:00:07]}  gxf6 {[%clk 0:00:22]} 33. h4 {[%clk 0:00:07]}  Kg7 {[%clk 0:00:21]} 34. Kf3 {[%clk 0:00:08]}  f5 {[%clk 0:00:21]} 35. Ra7 {[%clk 0:00:07]}  Kg6 {[%clk 0:00:21]} 36. Ra4 {[%clk 0:00:08]}  Rc8 {[%clk 0:00:21]} 37. Rb4 {[%clk 0:00:08]}  Rc2 {[%clk 0:00:21]} 38. Rf4 {[%clk 0:00:07]}  Ra2 {[%clk 0:00:20]} 39. Rb4 {[%clk 0:00:07]}  Rc2 {[%clk 0:00:20]} 40. e4 {[%clk 0:00:05]}  fxe4+ {[%clk 0:00:19]} 41. Rxe4 {[%clk 0:00:05]}  Rc3+ {[%clk 0:00:19]} 42. Kg2 {[%clk 0:00:06]}  Rc2 {[%clk 0:00:17]} 43. Rg4+ {[%clk 0:00:06]}  Kf6 {[%clk 0:00:17]} 44. Rg8 {[%clk 0:00:06]}  Rc7 {[%clk 0:00:14]} 45. g4 {[%clk 0:00:05]}  Rc4 {[%clk 0:00:12]} 46. Kg3 {[%clk 0:00:06]}  Ke7 {[%clk 0:00:12]} 47. Rg7 {[%clk 0:00:05]}  h6 {[%clk 0:00:11]} 48. Rh7 {[%clk 0:00:05]}  Rc1 {[%clk 0:00:07]} 49. Rxh6 {[%clk 0:00:05]}  Rg1+ {[%clk 0:00:07]} 50. Kf3 {[%clk 0:00:06]}  Rh1 {[%clk 0:00:08]} 51. h5 {[%clk 0:00:06]}  Rh3+ {[%clk 0:00:03]} 52. Kg2 {[%clk 0:00:06]}  Ra3 {[%clk 0:00:03]} 53. Rh8 {[%clk 0:00:04]}  Kf6 {[%clk 0:00:03]} 54. f3 {[%clk 0:00:05]}  Ra1 {[%clk 0:00:02]} 55. Kg3 {[%clk 0:00:05]}  Ra2 {[%clk 0:00:03]} 56. Rh6+ {[%clk 0:00:03]}  Kg7 {[%clk 0:00:03]} 57. g5 {[%clk 0:00:04]}  Ra5 {[%clk 0:00:02]} 58. f4 {[%clk 0:00:04]}  e5 {[%clk 0:00:03]} 59. Rf6 {[%clk 0:00:02]}  exf4+ {[%clk 0:00:02]} 60. Kxf4 {[%clk 0:00:03]}  Ra4+ {[%clk 0:00:03]} 61. Kf5 {[%clk 0:00:04]}  Ra5+ {[%clk 0:00:03]} 62. Kg4 {[%clk 0:00:04]}  Ra4+ {[%clk 0:00:03]} 63. Rf4 {[%clk 0:00:05]}  Ra5 {[%clk 0:00:04]} 64. Rd4 {[%clk 0:00:05]}  Ra1 {[%clk 0:00:04]} 65. Kf5 {[%clk 0:00:05]}  Rf1+ {[%clk 0:00:03]} 66. Rf4 {[%clk 0:00:06]}  Rh1 {[%clk 0:00:03]} 67. h6+ {[%clk 0:00:06]}  Kh7 {[%clk 0:00:04]} 68. Kf6 {[%clk 0:00:07]}  Kg8 {[%clk 0:00:03]} 69. Rf3 {[%clk 0:00:07]}  Ra1 {[%clk 0:00:03]} 70. Rf5 {[%clk 0:00:06]}  Ra6+ {[%clk 0:00:03]} 71. Ke5 {[%clk 0:00:07]}  Ra5+ {[%clk 0:00:04]} 72. Kf4 {[%clk 0:00:08]}  Ra4+ {[%clk 0:00:04]} 73. Kg3 {[%clk 0:00:08]}  Ra3+ {[%clk 0:00:04]} 74. Kg4 {[%clk 0:00:09]}  Ra4+ {[%clk 0:00:05]} 75. Rf4 {[%clk 0:00:09]}  Ra6 {[%clk 0:00:04]} 76. Rd4 {[%clk 0:00:09]}  Rb6 {[%clk 0:00:05]} 77. Rd5 {[%clk 0:00:09]}  Ra6 {[%clk 0:00:04]} 78. Kf5 {[%clk 0:00:10]}  Rb6 {[%clk 0:00:05]} 79. Rd7 {[%clk 0:00:08]}  Rb1 {[%clk 0:00:04]} 80. Rd8+ {[%clk 0:00:06]}  Kh7 {[%clk 0:00:04]} 81. Rd4 {[%clk 0:00:05]}  Rf1+ {[%clk 0:00:04]} 82. Rf4 {[%clk 0:00:06]}  Ra1 {[%clk 0:00:04]} 83. Kg4 {[%clk 0:00:06]}  Kg8 {[%clk 0:00:04]} 84. Rd4 {[%clk 0:00:04]}  Rg1+ {[%clk 0:00:04]} 85. Kf5 {[%clk 0:00:05]}  Rf1+ {[%clk 0:00:04]} 86. Ke5 {[%clk 0:00:04]}  Re1+ {[%clk 0:00:04]} 87. Re4 {[%clk 0:00:03]}  Ra1 {[%clk 0:00:03]} 88. Kf6 {[%clk 0:00:03]}  Rf1+ {[%clk 0:00:03]} 89. Ke7 {[%clk 0:00:03]}  Ra1 {[%clk 0:00:03]} 90. Rf4 {[%clk 0:00:02]}  Ra7+ {[%clk 0:00:03]} 91. Kf6 {[%clk 0:00:03]}  Ra6+ {[%clk 0:00:03]} 92. Kf5 {[%clk 0:00:02]}  Ra5+ {[%clk 0:00:04]} 93. Kg4 {[%clk 0:00:03]}  Ra1 {[%clk 0:00:04]} 94. Kh5 {[%clk 0:00:04]}  Rh1+ {[%clk 0:00:04]} 95. Rh4 {[%clk 0:00:05]}  Ra1 {[%clk 0:00:04]} 96. Rd4 {[%clk 0:00:05]}  Rh1+ {[%clk 0:00:04]} 97. Kg4 {[%clk 0:00:05]}  Rg1+ {[%clk 0:00:05]} 98. Kf5 {[%clk 0:00:06]}  Rf1+ {[%clk 0:00:05]} 99. Rf4 {[%clk 0:00:05]}  Ra1 {[%clk 0:00:05]} 100. Rd4 {[%clk 0:00:04]}  Rf1+ {[%clk 0:00:05]} 1/2-1/2


[Site "https://www.chess.com"]

[Event "Titled Tuesday Blitz March 28 Early 2023"]
[White "Buscar, Michael"]
[Black "Belov, Alexei"]
[WhiteFideId "2603616"]
[BlackFideId "4128206"]
[WhiteElo "2010"]
[BlackElo "2559"]
[Result "1-0"]
[Round "10"]
[TimeControl "180+2"]
[Date "2023.03.28"]
[WhiteClock "0:00:13"]
[BlackClock "0:00:03"]

1. d4 {[%clk 0:03:00]}  e6 {[%clk 0:03:00]} 2. Nf3 {[%clk 0:02:59]}  Nf6 {[%clk 0:03:00]} 3. c4 {[%clk 0:02:58]}  d5 {[%clk 0:03:00]} 4. cxd5 {[%clk 0:02:56]}  exd5 {[%clk 0:02:59]} 5. Qc2 {[%clk 0:02:56]}  c6 {[%clk 0:03:00]} 6. Bg5 {[%clk 0:02:56]}  Be7 {[%clk 0:02:59]} 7. e3 {[%clk 0:02:56]}  Nbd7 {[%clk 0:02:59]} 8. Bd3 {[%clk 0:02:55]}  O-O {[%clk 0:02:59]} 9. O-O {[%clk 0:02:55]}  Re8 {[%clk 0:02:59]} 10. Nc3 {[%clk 0:02:51]}  Nf8 {[%clk 0:02:59]} 11. Ne5 {[%clk 0:02:48]}  Ng4 {[%clk 0:02:59]} 12. Bxe7 {[%clk 0:02:42]}  Qxe7 {[%clk 0:02:59]} 13. Rab1 {[%clk 0:02:36]}  Nxe5 {[%clk 0:02:57]} 14. dxe5 {[%clk 0:02:35]}  Qxe5 {[%clk 0:02:57]} 15. b4 {[%clk 0:02:34]}  a6 {[%clk 0:02:57]} 16. a4 {[%clk 0:02:34]}  g6 {[%clk 0:02:38]} 17. b5 {[%clk 0:02:34]}  axb5 {[%clk 0:02:38]} 18. axb5 {[%clk 0:02:34]}  c5 {[%clk 0:02:31]} 19. Rfd1 {[%clk 0:02:22]}  Ra3 {[%clk 0:02:20]} 20. Rbc1 {[%clk 0:01:50]}  c4 {[%clk 0:02:16]} 21. Be2 {[%clk 0:01:44]}  Bf5 {[%clk 0:02:15]} 22. Qd2 {[%clk 0:01:37]}  Rd8 {[%clk 0:01:42]} 23. Bxc4 {[%clk 0:01:36]}  Be6 {[%clk 0:01:34]} 24. Nxd5 {[%clk 0:01:30]}  Bxd5 {[%clk 0:01:27]} 25. Bxd5 {[%clk 0:01:30]}  Kg7 {[%clk 0:01:14]} 26. e4 {[%clk 0:01:30]}  f5 {[%clk 0:01:09]} 27. Qb4 {[%clk 0:01:23]}  Raa8 {[%clk 0:00:58]} 28. Bxb7 {[%clk 0:01:19]}  Rxd1+ {[%clk 0:00:56]} 29. Rxd1 {[%clk 0:01:18]}  Ra1 {[%clk 0:00:57]} 30. Rb1 {[%clk 0:01:03]}  fxe4 {[%clk 0:00:48]} 31. Bxe4 {[%clk 0:01:01]}  Nd7 {[%clk 0:00:31]} 32. Rxa1 {[%clk 0:00:53]}  Qxa1+ {[%clk 0:00:31]} 33. Qb1 {[%clk 0:00:54]}  Qd4 {[%clk 0:00:31]} 34. g3 {[%clk 0:00:47]}  Nb6 {[%clk 0:00:29]} 35. Bc6 {[%clk 0:00:44]}  Nc4 {[%clk 0:00:27]} 36. Qe4 {[%clk 0:00:39]}  Qd1+ {[%clk 0:00:21]} 37. Kg2 {[%clk 0:00:38]}  Nd2 {[%clk 0:00:21]} 38. Qe7+ {[%clk 0:00:34]}  Kh6 {[%clk 0:00:19]} 39. Qe3+ {[%clk 0:00:33]}  Kg7 {[%clk 0:00:19]} 40. Qd3 {[%clk 0:00:24]}  Qc1 {[%clk 0:00:12]} 41. Bf3 {[%clk 0:00:16]}  Nc4 {[%clk 0:00:12]} 42. b6 {[%clk 0:00:13]}  Nxb6 {[%clk 0:00:06]} 43. Qd4+ {[%clk 0:00:13]}  Kh6 {[%clk 0:00:07]} 44. Qxb6 {[%clk 0:00:14]}  Qc8 {[%clk 0:00:06]} 45. Qe3+ {[%clk 0:00:14]}  Kg7 {[%clk 0:00:06]} 46. Qe7+ {[%clk 0:00:14]}  Kh6 {[%clk 0:00:05]} 47. h4 {[%clk 0:00:14]}  Qf5 {[%clk 0:00:03]} 48. h5 {[%clk 0:00:14]}  gxh5 {[%clk 0:00:03]} 49. Qd6+ {[%clk 0:00:13]}  Kg7 {[%clk 0:00:02]} 50. Qd5 {[%clk 0:00:13]}  Qxd5 {[%clk 0:00:01]} 51. Bxd5 {[%clk 0:00:12]}  Kg6 {[%clk 0:00:02]} 52. Kh3 {[%clk 0:00:12]}  Kg5 {[%clk 0:00:03]} 53. Bf3 {[%clk 0:00:12]}  h6 {[%clk 0:00:03]} 54. Be2 {[%clk 0:00:13]}  Kg6 {[%clk 0:00:03]} 55. Kh4 {[%clk 0:00:13]} 1-0


[Site "https://www.chess.com"]

[Event "Titled Tuesday Blitz March 28 Early 2023"]
[White "Melian, Juan Sebastian"]
[Black "Rosenberg, Evan S"]
[WhiteFideId "3706575"]
[BlackFideId "2019299"]
[WhiteElo "2031"]
[BlackElo "2341"]
[Result "0-1"]
[Round "10"]
[TimeControl "180+2"]
[Date "2023.03.28"]
[WhiteClock "0:00:21"]
[BlackClock "0:00:24"]

1. d4 {[%clk 0:03:00]}  d5 {[%clk 0:02:59]} 2. Nf3 {[%clk 0:02:57]}  Bf5 {[%clk 0:02:59]} 3. c4 {[%clk 0:02:54]}  e6 {[%clk 0:02:59]} 4. Nc3 {[%clk 0:02:53]}  Nf6 {[%clk 0:02:59]} 5. Bg5 {[%clk 0:02:53]}  c6 {[%clk 0:02:58]} 6. e3 {[%clk 0:02:53]}  Nbd7 {[%clk 0:02:58]} 7. Bd3 {[%clk 0:02:43]}  Bxd3 {[%clk 0:02:55]} 8. Qxd3 {[%clk 0:02:44]}  Be7 {[%clk 0:02:54]} 9. O-O {[%clk 0:02:42]}  O-O {[%clk 0:02:53]} 10. Rab1 {[%clk 0:02:38]}  h6 {[%clk 0:02:53]} 11. Bh4 {[%clk 0:02:38]}  Qa5 {[%clk 0:02:53]} 12. c5 {[%clk 0:02:26]}  Rfe8 {[%clk 0:02:48]} 13. b4 {[%clk 0:02:21]}  Qd8 {[%clk 0:02:47]} 14. b5 {[%clk 0:02:21]}  e5 {[%clk 0:02:40]} 15. Nxe5 {[%clk 0:02:05]}  Nxe5 {[%clk 0:02:37]} 16. dxe5 {[%clk 0:02:06]}  Nd7 {[%clk 0:02:38]} 17. Bxe7 {[%clk 0:02:05]}  Qxe7 {[%clk 0:02:38]} 18. f4 {[%clk 0:02:02]}  Nxc5 {[%clk 0:02:33]} 19. Qd2 {[%clk 0:01:57]}  Rad8 {[%clk 0:02:24]} 20. bxc6 {[%clk 0:01:57]}  bxc6 {[%clk 0:02:24]} 21. Ne2 {[%clk 0:01:52]}  Ne4 {[%clk 0:02:23]} 22. Qc1 {[%clk 0:01:52]}  c5 {[%clk 0:02:22]} 23. Rd1 {[%clk 0:01:52]}  Qe6 {[%clk 0:02:10]} 24. Nc3 {[%clk 0:01:49]}  Nxc3 {[%clk 0:01:56]} 25. Qxc3 {[%clk 0:01:50]}  Rc8 {[%clk 0:01:52]} 26. Rb5 {[%clk 0:01:50]}  d4 {[%clk 0:01:49]} 27. exd4 {[%clk 0:01:41]}  cxd4 {[%clk 0:01:50]} 28. Qxd4 {[%clk 0:01:42]}  Qxa2 {[%clk 0:01:48]} 29. Rd5 {[%clk 0:01:33]}  Rc2 {[%clk 0:01:44]} 30. Rd2 {[%clk 0:01:32]}  Rc1+ {[%clk 0:01:26]} 31. Kf2 {[%clk 0:01:31]}  Qb1 {[%clk 0:01:21]} 32. Kg3 {[%clk 0:01:13]}  Re6 {[%clk 0:01:06]} 33. Rd8+ {[%clk 0:00:43]}  Kh7 {[%clk 0:01:06]} 34. Qd3+ {[%clk 0:00:44]}  Rg6+ {[%clk 0:01:01]} 35. Kh3 {[%clk 0:00:44]}  Rc3 {[%clk 0:00:50]} 36. f5 {[%clk 0:00:28]}  Rxd3+ {[%clk 0:00:47]} 37. R8xd3 {[%clk 0:00:29]}  Rg5 {[%clk 0:00:43]} 38. e6 {[%clk 0:00:25]}  fxe6 {[%clk 0:00:39]} 39. fxe6 {[%clk 0:00:26]}  Re5 {[%clk 0:00:39]} 40. Kg3 {[%clk 0:00:20]}  Rxe6 {[%clk 0:00:38]} 41. h3 {[%clk 0:00:20]}  Qe1+ {[%clk 0:00:36]} 42. Kh2 {[%clk 0:00:20]}  a5 {[%clk 0:00:34]} 43. Rd7 {[%clk 0:00:21]}  a4 {[%clk 0:00:31]} 44. R2d4 {[%clk 0:00:20]}  a3 {[%clk 0:00:29]} 45. Rg4 {[%clk 0:00:21]}  Qe5+ {[%clk 0:00:24]} 46. Kh1 {[%clk 0:00:21]}  a2 {[%clk 0:00:24]} 47. Ra7 {[%clk 0:00:21]} 0-1


[Site "https://www.chess.com"]

[Event "Titled Tuesday Blitz March 28 Early 2023"]
[White "Skvortsov, Andrei"]
[Black "Nguyen Hong Nhung"]
[WhiteFideId "24108600"]
[BlackFideId "12412201"]
[WhiteElo "2259"]
[BlackElo "1904"]
[Result "1-0"]
[Round "10"]
[TimeControl "180+2"]
[Date "2023.03.28"]
[WhiteClock "0:01:13"]
[BlackClock "0:00:52"]

1. d4 {[%clk 0:03:00]}  f5 {[%clk 0:02:58]} 2. g3 {[%clk 0:02:57]}  Nf6 {[%clk 0:02:58]} 3. Bg2 {[%clk 0:02:57]}  g6 {[%clk 0:02:59]} 4. Nd2 {[%clk 0:02:58]}  Bg7 {[%clk 0:03:00]} 5. e4 {[%clk 0:02:58]}  fxe4 {[%clk 0:02:58]} 6. Nxe4 {[%clk 0:02:59]}  O-O {[%clk 0:02:53]} 7. Ne2 {[%clk 0:02:57]}  Nxe4 {[%clk 0:02:50]} 8. Bxe4 {[%clk 0:02:57]}  d5 {[%clk 0:02:50]} 9. Bg2 {[%clk 0:02:57]}  c5 {[%clk 0:02:46]} 10. dxc5 {[%clk 0:02:55]}  Qa5+ {[%clk 0:02:46]} 11. c3 {[%clk 0:02:56]}  e6 {[%clk 0:02:36]} 12. Be3 {[%clk 0:02:45]}  Nd7 {[%clk 0:02:30]} 13. O-O {[%clk 0:02:44]}  Qc7 {[%clk 0:02:29]} 14. b4 {[%clk 0:02:43]}  a5 {[%clk 0:02:29]} 15. Nd4 {[%clk 0:02:40]}  Ne5 {[%clk 0:02:25]} 16. Bf4 {[%clk 0:02:37]}  Qf7 {[%clk 0:02:20]} 17. Re1 {[%clk 0:02:35]}  Nc4 {[%clk 0:02:18]} 18. Nxe6 {[%clk 0:02:33]}  Bxe6 {[%clk 0:02:15]} 19. Rxe6 {[%clk 0:02:34]}  Rad8 {[%clk 0:01:41]} 20. Rd6 {[%clk 0:02:29]}  Rxd6 {[%clk 0:01:38]} 21. cxd6 {[%clk 0:02:28]}  Nb6 {[%clk 0:01:38]} 22. Be3 {[%clk 0:02:26]}  Bxc3 {[%clk 0:01:30]} 23. Bxb6 {[%clk 0:02:25]}  d4 {[%clk 0:01:16]} 24. Bxd4 {[%clk 0:02:24]}  Bxa1 {[%clk 0:01:16]} 25. Bxa1 {[%clk 0:02:24]}  Qxf2+ {[%clk 0:01:11]} 26. Kh1 {[%clk 0:02:25]}  Re8 {[%clk 0:01:02]} 27. Bc3 {[%clk 0:01:43]}  Re3 {[%clk 0:00:52]} 28. d7 {[%clk 0:01:13]} 1-0


[Site "https://www.chess.com"]

[Event "Titled Tuesday Blitz March 28 Early 2023"]
[White "Sielecki, Christof"]
[Black "Zheenbekov, Nurgazy"]
[WhiteFideId "4620437"]
[BlackFideId "13800485"]
[WhiteElo "2443"]
[BlackElo "1975"]
[Result "0-1"]
[Round "10"]
[TimeControl "180+2"]
[Date "2023.03.28"]
[WhiteClock "0:00:15"]
[BlackClock "0:00:55"]

1. e4 {[%clk 0:03:00]}  e5 {[%clk 0:02:56]} 2. Nf3 {[%clk 0:03:00]}  Nc6 {[%clk 0:02:56]} 3. Bb5 {[%clk 0:03:00]}  a6 {[%clk 0:02:55]} 4. Ba4 {[%clk 0:03:00]}  Nf6 {[%clk 0:02:55]} 5. d3 {[%clk 0:02:59]}  b5 {[%clk 0:02:54]} 6. Bb3 {[%clk 0:03:00]}  Be7 {[%clk 0:02:54]} 7. a4 {[%clk 0:02:59]}  Bb7 {[%clk 0:02:52]} 8. Nc3 {[%clk 0:02:56]}  b4 {[%clk 0:02:51]} 9. Nd5 {[%clk 0:02:56]}  O-O {[%clk 0:02:48]} 10. Nxe7+ {[%clk 0:02:48]}  Qxe7 {[%clk 0:02:45]} 11. O-O {[%clk 0:02:48]}  h6 {[%clk 0:02:39]} 12. Nh4 {[%clk 0:02:43]}  Nd4 {[%clk 0:02:27]} 13. Ng6 {[%clk 0:02:42]}  Qd8 {[%clk 0:02:14]} 14. Nxf8 {[%clk 0:02:38]}  Qxf8 {[%clk 0:02:14]} 15. Bc4 {[%clk 0:02:27]}  c5 {[%clk 0:02:10]} 16. c3 {[%clk 0:02:26]}  Ne6 {[%clk 0:02:10]} 17. Be3 {[%clk 0:02:20]}  d5 {[%clk 0:02:07]} 18. exd5 {[%clk 0:02:19]}  Nxd5 {[%clk 0:02:07]} 19. cxb4 {[%clk 0:02:07]}  cxb4 {[%clk 0:02:06]} 20. Rc1 {[%clk 0:02:06]}  Qd6 {[%clk 0:02:05]} 21. Qg4 {[%clk 0:01:30]}  Ndf4 {[%clk 0:01:49]} 22. Bxf4 {[%clk 0:01:20]}  Nxf4 {[%clk 0:01:49]} 23. Qf5 {[%clk 0:00:55]}  Rf8 {[%clk 0:01:34]} 24. Rfe1 {[%clk 0:00:54]}  Nxg2 {[%clk 0:01:17]} 25. Rxe5 {[%clk 0:00:46]}  Nh4 {[%clk 0:01:17]} 26. Bxf7+ {[%clk 0:00:19]}  Kh8 {[%clk 0:01:13]} 27. Qe6 {[%clk 0:00:17]}  Nf3+ {[%clk 0:01:04]} 28. Kf1 {[%clk 0:00:17]}  Qxe5 {[%clk 0:00:56]} 29. Qxe5 {[%clk 0:00:17]}  Nxe5 {[%clk 0:00:56]} 30. Bh5 {[%clk 0:00:15]}  Rxf2+ {[%clk 0:00:55]} 0-1


[Site "https://www.chess.com"]

[Event "Titled Tuesday Blitz March 28 Early 2023"]
[White "Sowul, Bartosz"]
[Black "Richter, Nils"]
[WhiteFideId "1137590"]
[BlackFideId "12990809"]
[WhiteElo "2188"]
[BlackElo "2381"]
[Result "1-0"]
[Round "10"]
[TimeControl "180+2"]
[Date "2023.03.28"]
[WhiteClock "0:00:26"]
[BlackClock "0:00:39"]

1. e4 {[%clk 0:03:00]}  c5 {[%clk 0:02:59]} 2. Nc3 {[%clk 0:03:00]}  e5 {[%clk 0:02:56]} 3. Bc4 {[%clk 0:02:56]}  Nc6 {[%clk 0:02:55]} 4. Nge2 {[%clk 0:02:54]}  a6 {[%clk 0:02:55]} 5. a4 {[%clk 0:02:53]}  g6 {[%clk 0:02:54]} 6. d3 {[%clk 0:02:51]}  Bg7 {[%clk 0:02:54]} 7. f4 {[%clk 0:02:50]}  d6 {[%clk 0:02:52]} 8. O-O {[%clk 0:02:49]}  Be6 {[%clk 0:02:48]} 9. Nd5 {[%clk 0:02:39]}  Nge7 {[%clk 0:02:46]} 10. c3 {[%clk 0:02:35]}  O-O {[%clk 0:02:43]} 11. Ng3 {[%clk 0:02:22]}  exf4 {[%clk 0:02:38]} 12. Bxf4 {[%clk 0:02:19]}  Ne5 {[%clk 0:02:37]} 13. Qd2 {[%clk 0:02:14]}  Nxd5 {[%clk 0:02:33]} 14. Bxd5 {[%clk 0:02:06]}  Bxd5 {[%clk 0:02:32]} 15. exd5 {[%clk 0:02:07]}  Qb6 {[%clk 0:02:27]} 16. a5 {[%clk 0:01:51]}  Qb5 {[%clk 0:02:24]} 17. c4 {[%clk 0:01:48]}  Qd7 {[%clk 0:02:14]} 18. Ne4 {[%clk 0:01:48]}  Rad8 {[%clk 0:02:05]} 19. Bg5 {[%clk 0:01:44]}  Rde8 {[%clk 0:02:01]} 20. Bf6 {[%clk 0:01:36]}  Ng4 {[%clk 0:01:57]} 21. Bxg7 {[%clk 0:01:34]}  Kxg7 {[%clk 0:01:58]} 22. h3 {[%clk 0:01:34]}  Ne5 {[%clk 0:01:39]} 23. Qg5 {[%clk 0:01:08]}  f5 {[%clk 0:01:35]} 24. Ng3 {[%clk 0:01:05]}  Qe7 {[%clk 0:01:15]} 25. Nh5+ {[%clk 0:00:56]}  Kh8 {[%clk 0:01:12]} 26. Qxe7 {[%clk 0:00:57]}  Rxe7 {[%clk 0:01:11]} 27. Nf4 {[%clk 0:00:58]}  Nxd3 {[%clk 0:01:08]} 28. Nxd3 {[%clk 0:00:58]}  Re3 {[%clk 0:01:05]} 29. Rf3 {[%clk 0:00:47]}  f4 {[%clk 0:01:00]} 30. Rxe3 {[%clk 0:00:41]}  fxe3 {[%clk 0:01:00]} 31. Re1 {[%clk 0:00:42]}  Re8 {[%clk 0:00:59]} 32. b3 {[%clk 0:00:35]}  Kg7 {[%clk 0:00:58]} 33. Nf4 {[%clk 0:00:33]}  Re4 {[%clk 0:00:57]} 34. Ne6+ {[%clk 0:00:31]}  Kf6 {[%clk 0:00:57]} 35. Kf1 {[%clk 0:00:30]}  Re5 {[%clk 0:00:43]} 36. Ke2 {[%clk 0:00:29]}  g5 {[%clk 0:00:38]} 37. Rf1+ {[%clk 0:00:28]}  Kg6 {[%clk 0:00:39]} 38. Rf3 {[%clk 0:00:27]}  h5 {[%clk 0:00:38]} 39. g4 {[%clk 0:00:26]}  Rf5 {[%clk 0:00:39]} 40. gxf5+ {[%clk 0:00:26]} 1-0


[Site "https://www.chess.com"]